bitfinex-derivatives/quotes_SOLF0:USTF0_20250311
["timestamp","ask_amount","ask_price","bid_price","bid_amount"]
[1741706708326,21.96087151,122.97,122.89,56.46]
[1741706708532,21.96087151,122.95,122.89,56.46]
[1741706708728,21.96087151,122.93,122.86,4.0077]
[1741706708920,22.01883539,122.93,122.91,0.05657129]
[1741706709126,78.43883539,122.93,122.84,4.0686]
[1741706709324,21.96087151,122.91,122.84,4.0686]
[1741706709727,56.42,122.93,122.84,4.0686]
[1741706710231,0.06139979,122.9,122.87,22.01964912]
[1741706710433,0.3877,122.97,122.88,60.5867]
[1741706710630,21.96087151,122.96,122.88,60.5867]
[1741706710933,8.1375,122.93,122.89,8.1395]
[1741706711133,21.96087151,122.96,122.88,60.5867]
[1741706711431,21.96087151,122.94,122.86,3.9711]
[1741706711631,56.7877,122.97,122.91,0.06050158]
[1741706711632,0.06033889,122.93,122.91,0.06050158]
[1741706712630,21.96087151,123.0,122.91,4.19070158]
[1741706712835,21.96087151,123.0,122.91,4.1302]
[1741706713235,21.96087151,122.98,122.91,4.1302]
[1741706713532,21.96087151,122.98,122.9,56.4]
[1741706713727,0.05431647,122.96,122.93,0.06140326]
[1741706713934,22.01518798,122.96,122.93,3.26e-06]
[1741706714130,8.1363,122.94,122.93,3.26e-06]
[1741706715134,8.1393,122.9,122.87,4.0996]
[1741706715336,78.34087151,122.97,122.87,4.0996]
[1741706715534,78.34087151,122.97,122.89,8.1391]
[1741706715730,8.1368,122.94,122.87,4.0996]
[1741706716133,78.34087151,122.97,122.9,8.1386]
[1741706716425,0.05971759,122.92,122.87,4.0996]
[1741706716632,78.34087151,122.97,122.92,0.06266784]
[1741706716827,0.05863496,122.91,122.87,4.0996]
[1741706717133,21.96087151,122.95,122.87,4.0996]
[1741706717338,0.0568218,122.9,122.87,4.0996]
[1741706717541,0.0568218,122.9,122.86,8.0809]
[1741706717736,0.0568218,122.9,122.87,0.05346812]
[1741706719340,8.1961218,122.9,122.87,0.05346812]
[1741706719541,0.0568218,122.9,122.87,0.05346812]
[1741706720040,0.0568218,122.9,122.82,203.538]
[1741706720233,60.5245,122.92,122.86,8.1415]
[1741706720434,8.1396,122.89,122.82,203.538]
[1741706720631,60.5245,122.92,122.82,203.538]
[1741706720832,60.5245,122.92,122.85,8.1419]
[1741706721030,21.96087151,122.95,122.82,203.538]
[1741706721235,16.266,122.99,122.87,0.05576274]
[1741706721236,0.05449438,122.9,122.87,0.05576274]
[1741706721436,22.36327151,122.97,122.86,56.34]
[1741706721639,0.0555662,122.9,122.87,0.05808146]
[1741706721833,290.84787151,122.96,122.89,8.1392]
[1741706722033,0.05644564,122.9,122.87,0.06132617]
[1741706722234,290.84787151,122.96,122.86,56.34]
[1741706722436,0.0623771,122.9,122.89,8.1396]
[1741706722635,290.46087151,122.96,122.86,56.34]
[1741706722831,0.05584278,122.91,122.88,0.05942503]
[1741706723029,8.1373,122.93,122.86,269.30087151]
[1741706723237,56.34,122.97,122.86,269.30087151]
[1741706723238,0.06148015,122.91,122.88,0.05422473]
[1741706723432,21.96087151,122.96,122.88,0.05422473]
[1741706723636,56.34,122.97,122.86,247.34]
[1741706723837,0.05820488,122.91,122.86,247.34]
[1741706724032,0.05820488,122.91,122.9,8.19914317]
[1741706724236,26.14537151,122.98,122.89,0.05253294]
[1741706724431,21.96087151,122.98,122.89,21.96087151]
[1741706724638,21.96087151,122.99,122.9,8.2329]
[1741706725144,21.96087151,122.99,122.9,16.3718]
[1741706725444,0.05504354,122.96,122.93,0.05271892]
[1741706727340,22.01591505,122.96,122.93,0.05271892]
[1741706727747,0.05504354,122.96,122.93,0.05271892]
[1741706728852,21.96087151,123.03,122.93,56.33271892]
[1741706729048,8.134,122.98,122.94,4.0904]
[1741706729456,21.96087151,123.01,122.94,4.0904]
[1741706729753,21.96087151,122.99,122.92,4.2453]
[1741706730146,21.96087151,122.99,122.94,0.06113175]
[1741706730147,8.1356,122.95,122.94,0.06113175]
[1741706730458,8.1356,122.95,122.94,3.175e-05]
[1741706730659,22.01285459,122.97,122.94,3.175e-05]
[1741706730850,0.05198308,122.97,122.94,3.175e-05]
[1741706731759,268.8468,123.04,122.94,3.175e-05]
[1741706731760,268.44,123.04,122.94,3.175e-05]
[1741706731947,268.44,123.04,122.94,191.0]
[1741706732460,8.1327,123.0,122.97,8.1342]
[1741706732649,290.40087151,123.04,122.94,191.0]
[1741706732955,8.1331,122.99,122.97,0.06245913]
[1741706733159,0.05186772,123.0,122.97,0.06245913]
[1741706735061,8.18446772,123.0,122.97,0.06245913]
[1741706735261,0.05186772,123.0,122.97,8.19635913]
[1741706735466,0.05186772,123.0,122.97,0.06245913]
[1741706735668,0.05186772,123.0,122.98,8.133]
[1741706735860,0.05186772,123.0,122.97,0.06245913]
[1741706737364,8.1334,122.99,122.97,0.06245913]
[1741706737566,0.05186772,123.0,122.97,0.06245913]
[1741706738168,21.96087151,123.06,122.97,0.06245913]
[1741706738370,21.96087151,123.06,122.94,212.96087151]
[1741706738871,8.1307,123.03,123.0,8.132]
[1741706739071,21.96087151,123.06,122.98,56.18]
[1741706739370,4.3398,123.07,123.0,0.05403351]
[1741706739371,8.1311,123.02,123.0,0.05403351]
[1741706739764,0.05179863,123.03,123.0,0.05403351]
[1741706740466,8.1315,123.02,123.0,0.05403351]
[1741706740667,0.05179863,123.03,123.0,0.05403351]
[1741706741067,0.05179863,123.03,123.01,8.1313]
[1741706741472,0.05179863,123.03,123.0,0.05403351]
[1741706741764,8.1313,123.02,123.0,0.05403351]
[1741706741966,0.05179863,123.03,123.0,0.05403351]
[1741706742774,8.1313,123.02,123.0,0.05403351]
[1741706743272,8.1316,123.01,123.0,0.05403351]
[1741706743460,0.05179863,123.03,123.0,0.05403351]
[1741706744370,21.96087151,123.02,122.92,56.14]
[1741706744573,21.96087151,123.02,122.92,64.5176]
[1741706744773,21.96087151,123.02,122.95,8.135]
[1741706745072,21.96087151,123.02,122.92,64.5176]
[1741706745272,8.136,122.95,122.92,72.6549]
[1741706745472,21.96087151,123.0,122.92,8.3776]
[1741706745669,0.05558486,122.95,122.92,8.44014568]
[1741706745873,0.05558486,122.95,122.89,8.1394]
[1741706746074,0.05558486,122.95,122.92,0.0533018]
[1741706746277,8.1387,122.91,122.88,4.0962]
[1741706746469,21.96087151,122.94,122.88,4.0962]
[1741706747070,21.96087151,122.94,122.86,4.2814]
[1741706747279,8.1394,122.9,122.86,4.2814]
[1741706747573,0.05704549,122.91,122.89,0.05843372]
[1741706747778,0.05704549,122.91,122.83,31.35822572]
[1741706747970,21.96087151,122.9,122.83,31.35822572]
[1741706748170,21.96087151,122.88,122.83,31.35822572]
[1741706748371,8.1429,122.84,122.83,31.35822572]
[1741706749474,0.05699927,122.85,122.83,31.35822572]
[1741706750172,0.05699927,122.85,122.82,0.06001675]
[1741706750578,8.1436,122.83,122.82,0.06001675]
[1741706751071,8.1436,122.83,122.82,1.675e-05]
[1741706752069,0.05699927,122.85,122.82,1.675e-05]
[1741706752477,21.96087151,122.84,122.82,1.675e-05]
[1741706752671,8.1436,122.83,122.82,1.675e-05]
[1741706753672,2.44,122.83,122.69,191.0]
[1741706753870,21.96087151,122.81,122.73,8.15]
[1741706754074,21.96087151,122.81,122.71,56.1]
[1741706754472,21.96087151,122.82,122.71,56.1]
[1741706755080,0.05288025,122.78,122.75,0.05925015]
[1741706756875,276.6039,122.83,122.76,56.1]
[1741706757075,268.46,122.83,122.77,8.541]
[1741706757270,60.0475,122.85,122.78,8.1466]
[1741706757576,21.96087151,122.84,122.77,8.541]
[1741706757965,0.060581,122.82,122.79,0.05902892]
[1741706758170,0.060581,122.82,122.8,8.1452]
[1741706758371,21.96087151,122.86,122.77,8.541]
[1741706758675,0.05557892,122.82,122.8,0.06212017]
[1741706759866,0.05557892,122.82,122.81,8.1449]
[1741706760375,268.62,122.88,122.8,0.06212017]
[1741706760574,8.1418,122.86,122.77,30.50187151]
[1741706760776,268.62,122.88,122.77,30.50187151]
[1741706761378,290.62087151,122.94,122.8,21.96087151]
[1741706761676,0.05287834,122.88,122.82,21.96087151]
[1741706761881,0.05287834,122.88,122.86,0.05457109]
[1741706762179,21.96087151,122.96,122.86,56.13457109]
[1741706762379,21.96087151,122.96,122.87,8.0102]
[1741706763071,4.0972,122.99,122.88,21.96087151]
[1741706763275,44.37248172,123.01,122.9,22.0226399]
[1741706763477,44.37248172,123.01,122.91,56.06]
[1741706763679,8.1327,123.0,122.95,8.1353]
[1741706763877,44.37248172,123.01,122.91,56.06]
[1741706764073,44.37248172,123.01,122.93,3.9783]
[1741706764381,44.37248172,123.01,122.94,4.0319]
[1741706764581,0.05816854,122.98,122.96,0.05638494]
[1741706765874,21.96087151,123.04,122.96,0.05638494]
[1741706766079,21.96087151,123.02,122.94,4.0319]
[1741706766274,8.1336,122.98,122.94,4.0319]
[1741706766476,21.96087151,123.02,122.94,4.0319]
[1741706766881,21.96087151,123.04,122.94,4.0319]
[1741706767088,0.05456991,122.99,122.97,0.0537856]
[1741706767282,21.96087151,123.04,122.94,4.0319]
[1741706767483,0.0601919,122.99,122.97,0.05383564]
[1741706767682,21.96087151,123.06,122.98,56.02]
[1741706767989,21.96087151,123.1,122.98,268.98087151]
[1741706768286,21.96087151,123.08,122.98,247.02]
[1741706768686,21.96087151,123.08,122.98,255.1532]
[1741706768882,21.96087151,123.08,122.98,247.02]
[1741706769088,0.05794082,123.04,123.02,0.0551205]
[1741706770588,8.1303,123.03,123.02,0.0551205]
[1741706770887,0.05794082,123.04,123.02,0.0551205]
[1741706771491,55.98,123.15,123.03,55.98]
[1741706771683,55.98,123.15,123.04,21.96087151]
[1741706772489,21.96087151,123.12,123.03,55.98]
[1741706772695,8.1264,123.09,123.08,5.171e-05]
[1741706773088,0.05574358,123.11,123.08,5.171e-05]
[1741706773893,8.18104358,123.11,123.08,5.171e-05]
[1741706774090,0.05574358,123.11,123.08,5.171e-05]
[1741706774789,0.05574358,123.11,123.09,8.1263]
[1741706774988,268.46,123.16,123.08,55.94005171]
[1741706775198,268.46,123.16,123.09,8.2231]
[1741706775398,8.1231,123.14,123.09,8.2231]
[1741706775691,268.46,123.16,123.09,8.2231]
[1741706776289,0.05204415,123.14,123.11,0.05683585]
[1741706776495,0.05204415,123.14,123.13,8.1237]
[1741706776801,4.0216,123.22,123.13,55.9]
[1741706777095,8.1192,123.2,123.15,8.122]
[1741706777299,71.96087151,123.25,123.13,77.86087151]
[1741706777491,50.0,123.25,123.16,21.96087151]
[1741706777689,50.0,123.25,123.18,8.1203]
[1741706777892,0.0626009,123.22,123.19,0.06057327]
[1741706778294,8.1191,123.2,123.19,0.06057327]
[1741706779700,0.0626009,123.22,123.19,0.06057327]
[1741706782299,8.1191,123.2,123.19,0.06057327]
[1741706782494,0.0626009,123.22,123.19,0.06057327]
[1741706782895,8.1189,123.21,123.19,0.06057327]
[1741706783188,0.0626009,123.22,123.19,0.06057327]
[1741706783393,8.1191,123.2,123.19,0.06057327]
[1741706784499,22.02347241,123.22,123.13,191.0]
[1741706784700,22.02347241,123.22,123.12,8.5214]
[1741706784995,8.1237,123.13,123.12,4.1682]
[1741706785199,21.96087151,123.16,123.07,8.2118]
[1741706785591,0.05285432,123.13,123.07,16.3391]
[1741706785801,0.05285432,123.13,123.1,0.0545363]
[1741706786195,8.125,123.11,123.1,0.0545363]
[1741706786396,8.125,123.11,123.1,3.63e-05]
[1741706787394,8.125,123.11,123.01,8.625]
[1741706787595,8.1292,123.05,123.01,68.4661]
[1741706787802,21.96087151,123.1,123.01,64.1677]
[1741706787999,8.1291,123.05,123.01,68.4661]
[1741706788398,77.74087151,123.12,123.01,68.4661]
[1741706788792,77.74087151,123.12,123.02,0.05655539]
[1741706789004,21.96087151,123.1,123.01,68.4661]
[1741706789306,21.96087151,123.08,123.01,12.6861]
[1741706789901,81.85717151,123.12,123.03,8.1302]
[1741706790203,81.85717151,123.12,123.01,34.64697151]
[1741706790405,0.05471035,123.09,123.06,0.05628028]
[1741706790701,8.1274,123.08,123.06,0.05628028]
[1741706791102,0.05471035,123.09,123.06,0.05628028]
[1741706792099,0.05471035,123.09,123.07,8.1276]
[1741706792307,0.05471035,123.09,123.06,0.05628028]
[1741706792998,268.02,123.13,123.06,0.05628028]
[1741706793193,22.75117151,123.16,123.06,0.05628028]
[1741706793398,8.1256,123.11,123.04,55.76]
[1741706793700,21.96087151,123.14,123.04,55.76]
[1741706793902,0.7903,123.16,123.04,77.72087151]
[1741706794202,0.05880635,123.11,123.09,0.05728107]
[1741706794603,21.96087151,123.14,123.09,0.05728107]
[1741706794902,0.05525683,123.11,123.09,0.05728107]
[1741706795606,290.06087151,123.18,123.09,55.79728107]
[1741706795801,268.1,123.18,123.09,55.74]
[1741706796103,5.2187,123.21,123.1,25.99987151]
[1741706796304,4.3696,123.21,123.14,8.1227]
[1741706796500,4.3696,123.21,123.1,25.99987151]
[1741706796702,21.96087151,123.16,123.1,4.039]
[1741706797006,268.1,123.15,123.14,3.14e-05]
[1741706797302,268.1,123.15,123.05,77.68087151]
[1741706797503,21.96087151,123.18,123.08,21.96087151]
[1741706797705,8.1221,123.16,123.08,21.96087151]
[1741706797905,290.06087151,123.2,123.08,21.96087151]
[1741706798106,21.96087151,123.18,123.06,21.96087151]
[1741706798306,0.05513003,123.15,123.13,0.05184044]
[1741706800200,4.3696,123.21,123.13,24.45271195]
[1741706800506,0.8491,123.24,123.12,21.96087151]
[1741706800700,50.0,123.25,123.15,21.96087151]
[1741706800903,50.0,123.25,123.17,21.96087151]
[1741706801206,50.0,123.25,123.19,21.96087151]
[1741706801404,50.0,123.25,123.18,8.3438]
[1741706801405,0.05904147,123.22,123.2,0.06272632]
[1741706801604,50.0,123.25,123.2,0.06272632]
[1741706802005,50.0,123.25,123.21,8.1179]
[1741706802305,50.0,123.25,123.2,0.06272632]
[1741706802910,0.05353444,123.24,123.2,0.06272632]
[1741706804305,50.0,123.25,123.21,55.66]
[1741706804510,50.0,123.25,123.21,91.16850414]
[1741706804707,4.2587,123.32,123.23,35.50850414]
[1741706805008,268.0,123.33,123.23,35.50850414]
[1741706805406,303.50850414,123.33,123.21,246.66]
[1741706805606,0.02219122,123.29,123.27,0.06063401]
[1741706805807,8.1144,123.28,123.27,0.06063401]
[1741706807212,0.02219122,123.29,123.27,0.06063401]
[1741706808309,1.0704,123.35,123.27,0.06063401]
[1741706808507,11.15398741,123.36,123.29,35.50850414]
[1741706808808,11.15398741,123.36,123.31,35.50850414]
[1741706809012,11.15398741,123.36,123.34,8.1095]
[1741706809310,11.15398741,123.36,123.32,55.6]
[1741706809513,11.15398741,123.36,123.34,0.05953573]
[1741706810008,11.15398741,123.38,123.34,0.05953573]
[1741706810602,141.5745865,123.4,123.34,8.16913573]
[1741706810902,133.4682865,123.4,123.34,4.00373573]
[1741706811708,8.1087,123.36,123.34,4.00373573]
[1741706811910,133.4682865,123.4,123.34,4.00373573]
[1741706812406,133.4682865,123.4,123.35,35.50850414]
[1741706812607,133.4682865,123.4,123.34,4.00373573]
[1741706813411,8.1076,123.38,123.34,4.00373573]
[1741706813612,39.50520414,123.44,123.34,3.9442]
[1741706813808,39.50520414,123.44,123.35,0.05577211]
[1741706814007,39.50520414,123.44,123.34,3.9442]
[1741706814207,39.50520414,123.44,123.38,0.05525092]
[1741706814401,8.1065,123.4,123.38,0.05525092]
[1741706814912,39.50520414,123.44,123.38,0.05525092]
[1741706815709,35.50850414,123.42,123.31,246.52]
[1741706815906,35.50850414,123.42,123.32,8.1109]
[1741706816107,8.1101,123.34,123.31,250.5489]
[1741706816412,35.50850414,123.39,123.31,55.52]
[1741706816611,8.1086,123.36,123.31,55.52]
[1741706816914,0.05525092,123.36,123.34,0.05372305]
[1741706817311,8.1092,123.35,123.34,0.05372305]
[1741706818616,35.56375506,123.36,123.29,1.62219158]
[1741706818816,35.50850414,123.34,123.29,1.62219158]
[1741706819014,35.50850414,123.34,123.28,55.5]
[1741706819217,8.1129,123.3,123.28,55.5]
[1741706819520,35.50850414,123.34,123.22,35.50850414]
[1741706819815,0.05588412,123.29,123.27,0.05763087]
[1741706820015,35.50850414,123.32,123.27,0.05763087]
[1741706820213,8.16463301,123.29,123.23,59.7872]
[1741706820421,8.16463301,123.29,123.28,0.05563932]
[1741706820618,0.05113301,123.29,123.24,8.116]
[1741706820815,8.1141,123.28,123.27,0.05917125]
[1741706821428,0.05113301,123.29,123.21,55.48]
[1741706821724,35.50850414,123.28,123.19,8.4776]
[1741706822330,35.50850414,123.28,123.21,8.1184]
[1741706822524,8.1163,123.25,123.19,8.4776]
[1741706822726,0.05476553,123.26,123.23,0.05566379]
[1741706822925,35.50850414,123.28,123.23,0.05566379]
[1741706823125,8.1158,123.26,123.23,0.05566379]
[1741706823427,0.05915582,123.26,123.23,0.05566379]
[1741706824528,0.05915582,123.26,123.23,8.17256379]
[1741706824722,0.05915582,123.26,123.23,0.05566379]
[1741706827127,0.05915582,123.26,123.24,8.116]
[1741706827323,0.05915582,123.26,123.23,0.05566379]
[1741706828319,0.05915582,123.26,123.23,12.48936379]
[1741706828524,35.50850414,123.34,123.23,12.48936379]
[1741706828729,272.0973,123.35,123.24,35.50850414]
[1741706829231,272.0973,123.35,123.26,35.50850414]
[1741706829432,4.2819,123.37,123.28,35.50850414]
[1741706829623,43.72580414,123.4,123.28,35.50850414]
[1741706829822,0.05694634,123.34,123.33,8.1105]
[1741706830223,267.72,123.41,123.32,55.42]
[1741706831530,267.72,123.41,123.35,0.05304901]
[1741706831531,0.05477003,123.38,123.35,0.05304901]
[1741706831936,8.1087,123.36,123.35,4.901e-05]
[1741706832425,43.61720414,123.36,123.35,4.901e-05]
[1741706832629,8.1134,123.29,123.26,191.0]
[1741706832827,35.50850414,123.32,123.25,8.4366]
[1741706833934,0.05740605,123.3,123.27,0.05576954]
[1741706834936,8.1138,123.28,123.27,0.05576954]
[1741706835526,8.1136,123.29,123.27,0.05576954]
[1741706835843,0.05740605,123.3,123.27,0.05576954]
[1741706836830,267.68,123.4,123.34,8.1098]
[1741706837026,267.68,123.4,123.28,39.65760414]
[1741706837238,35.50850414,123.38,123.28,59.5091]
[1741706837537,8.1073,123.38,123.33,8.1105]
[1741706837739,303.18850414,123.4,123.29,4.3096]
[1741706837936,0.05041299,123.37,123.34,0.05209664]
[1741706840837,8.15861299,123.37,123.34,0.05209664]
[1741706841032,0.05041299,123.37,123.34,8.16159664]
[1741706841430,0.05041299,123.37,123.34,0.05209664]
[1741706841632,267.68,123.4,123.34,0.05209664]
[1741706841633,35.50850414,123.45,123.35,55.32]
[1741706841839,8.1084,123.37,123.35,55.32]
[1741706842038,8.1084,123.37,123.32,55.32]
[1741706842240,35.50850414,123.41,123.32,55.32]
[1741706842436,8.1093,123.35,123.32,55.32]
[1741706842636,35.50850414,123.37,123.3,55.32]
[1741706842837,35.50850414,123.37,123.32,0.05574827]
[1741706843034,8.1097,123.35,123.32,0.05574827]
[1741706843239,35.50850414,123.37,123.32,0.05574827]
[1741706843437,8.1105,123.33,123.32,0.05574827]
[1741706844533,35.50850414,123.37,123.32,0.05574827]
[1741706845242,8.1105,123.33,123.32,0.05574827]
[1741706846533,8.1105,123.33,123.32,4.827e-05]
[1741706846738,37.94850414,123.33,123.22,55.28]
[1741706846933,8.1137,123.29,123.22,55.28]
[1741706847138,4.2676,123.34,123.22,281.78850414]
[1741706847334,12.378,123.34,123.24,35.50850414]
[1741706847538,12.378,123.34,123.25,4.0517]
[1741706847539,4.2676,123.34,123.25,4.0517]
[1741706847739,35.50850414,123.33,123.27,8.1143]
[1741706847941,0.05574827,123.31,123.28,0.05462842]
[1741706848742,4.3808,123.37,123.28,0.05462842]
[1741706849048,12.489,123.37,123.28,35.50850414]
[1741706849236,267.6,123.39,123.33,8.1102]
[1741706849642,8.1085,123.37,123.28,35.50850414]
[1741706849842,267.6,123.39,123.31,8.1114]
[1741706850038,267.6,123.39,123.31,0.05398669]
[1741706850246,267.6,123.39,123.28,35.50850414]
[1741706850545,267.6,123.39,123.27,55.28]
[1741706850546,267.6,123.39,123.34,0.05192009]
[1741706850849,44.13600414,123.43,123.34,0.05192009]
[1741706851051,35.50850414,123.39,123.33,55.26]
[1741706851251,35.50850414,123.39,123.37,0.05522718]
[1741706851447,8.1073,123.38,123.37,0.05522718]
[1741706851653,35.50850414,123.41,123.37,0.05522718]
[1741706852043,35.50850414,123.41,123.37,2.718e-05]
[1741706852353,8.1073,123.38,123.37,2.718e-05]
[1741706852753,43.61580414,123.38,123.37,2.718e-05]
[1741706852951,35.50850414,123.35,123.26,12.5111]
[1741706853148,35.50850414,123.35,123.25,55.24]
[1741706853454,8.1143,123.28,123.25,8.1158]
[1741706853642,35.50850414,123.33,123.25,8.1158]
[1741706853846,35.50850414,123.33,123.23,55.24]
[1741706854047,0.05522718,123.3,123.28,0.0520756]
[1741706854552,311.51720414,123.37,123.29,8.1132]
[1741706854741,311.51720414,123.37,123.28,55.22]
[1741706855343,35.50850414,123.39,123.28,55.22]
[1741706855556,8.1089,123.36,123.32,8.111]
[1741706855748,4.0302,123.4,123.32,0.05136538]
[1741706856054,4.0302,123.4,123.29,12.7117]
[1741706856249,35.50850414,123.37,123.35,9.709e-05]
[1741706856656,8.1086,123.36,123.35,9.709e-05]
[1741706856853,3.9797,123.41,123.35,9.709e-05]
[1741706857053,8.1086,123.36,123.35,9.709e-05]
[1741706858351,309.68060414,123.36,123.23,8.7015]
[1741706858553,35.50850414,123.32,123.23,8.7015]
[1741706858748,8.1142,123.28,123.23,8.7015]
[1741706858950,35.50850414,123.32,123.23,8.7015]
[1741706859360,0.05549709,123.29,123.26,0.05343601]
[1741706860453,0.05549709,123.29,123.28,8.1138]
[1741706860754,124.38350093,123.41,123.28,281.68850414]
[1741706860959,128.36890093,123.41,123.34,8.1098]
[1741706861359,8.1076,123.38,123.34,8.1098]
[1741706861758,128.36890093,123.41,123.35,0.05920511]
[1741706862259,128.36890093,123.41,123.35,8.16830511]
[1741706862559,8.1073,123.38,123.35,0.05920511]
[1741706862760,39.49390414,123.41,123.35,0.05920511]
[1741706863259,8.1074,123.38,123.35,0.05920511]
[1741706863758,39.49390414,123.41,123.35,0.05920511]
[1741706863955,8.1069,123.39,123.35,0.05920511]
[1741706864153,39.49390414,123.41,123.35,0.05920511]
[1741706864356,3.9854,123.41,123.35,0.05920511]
[1741706864957,8.107,123.39,123.35,0.05920511]
[1741706865357,8.1063,123.4,123.35,0.05920511]
[1741706865955,8.2361,123.42,123.35,0.05920511]
[1741706866158,8.1067,123.39,123.35,0.05920511]
[1741706866653,8.1067,123.39,123.36,8.1082]
[1741706867066,8.1062,123.4,123.37,8.1077]
[1741706867267,303.08850414,123.44,123.34,55.14]
[1741706867568,303.08850414,123.44,123.37,0.05458517]
[1741706867762,303.08850414,123.44,123.38,8.1068]
[1741706867962,303.08850414,123.44,123.35,3.9512]
[1741706868159,303.08850414,123.44,123.4,0.06206246]
[1741706868361,35.50850414,123.42,123.4,0.06206246]
[1741706868756,73.45700828,123.42,123.32,4.0207]
[1741706869062,35.50850414,123.39,123.32,4.0207]
[1741706869359,35.50850414,123.35,123.26,55.1]
[1741706869762,0.06065829,123.32,123.29,0.05995787]
[1741706871062,8.1122,123.31,123.29,0.05995787]
[1741706871267,0.06065829,123.32,123.29,0.05995787]
[1741706871464,8.17225829,123.32,123.29,0.05995787]
[1741706871963,8.1119,123.31,123.29,0.05995787]
[1741706872166,0.06065829,123.32,123.29,0.05995787]
[1741706872562,0.06065829,123.32,123.3,8.1125]
[1741706872762,0.06065829,123.32,123.29,0.05995787]
[1741706873164,8.17185829,123.32,123.29,0.05995787]
[1741706873361,0.06065829,123.32,123.29,0.05995787]
[1741706874063,0.06065829,123.32,123.29,5.787e-05]
[1741706874272,35.56916243,123.32,123.29,5.787e-05]
[1741706874867,71.01700828,123.3,123.22,1.62311313]
[1741706875067,35.50850414,123.23,123.15,221.87303578]
[1741706875267,35.50850414,123.21,123.15,30.87303578]
[1741706875569,35.50850414,123.17,123.15,30.87303578]
[1741706875878,35.50850414,123.2,123.14,207.71854289]
[1741706876064,0.05781857,123.17,123.15,0.05928105]
[1741706876371,8.1217,123.16,123.15,0.05928105]
[1741706876972,35.50850414,123.16,123.12,82.32809541]
[1741706877161,35.50850414,123.14,123.12,31.24988448]
[1741706877566,43.63210414,123.14,123.12,31.24988448]
[1741706877872,35.50850414,123.14,123.12,31.24988448]
[1741706878174,0.05877094,123.14,123.12,31.30718157]
[1741706878765,0.05877094,123.14,123.12,39.43108157]
[1741706878965,0.05877094,123.14,123.12,31.30718157]
[1741706879367,0.05877094,123.14,123.12,0.05729709]
[1741706879868,0.05877094,123.14,123.13,8.1237]
[1741706880065,303.20850414,123.23,123.12,0.05729709]
[1741706880370,35.50850414,123.18,123.08,4.3447]
[1741706880570,35.50850414,123.18,123.08,59.4047]
[1741706880774,90.56850414,123.2,123.08,250.4047]
[1741706880973,35.50850414,123.2,123.08,250.4047]
[1741706881172,0.0523365,123.15,123.13,0.06074785]
[1741706881572,0.06014572,123.15,123.13,0.06074785]
[1741706882573,8.1262,123.1,123.07,8.5114]
[1741706882880,35.50850414,123.12,123.02,4.1656]
[1741706883073,35.50850414,123.12,123.05,8.1286]
[1741706883276,35.50850414,123.12,123.02,67.5054]
[1741706883575,56.225,123.14,123.09,8.126]
[1741706883576,8.1242,123.13,123.09,8.126]
[1741706883769,8.1242,123.13,123.02,258.5054]
[1741706883770,267.78,123.15,123.07,55.06]
[1741706884574,90.56850414,123.18,123.08,4.3558]
[1741706884778,8.1215,123.17,123.13,8.1236]
[1741706884984,8.1215,123.17,123.12,0.05980805]
[1741706884985,0.0542029,123.14,123.12,0.05980805]
[1741706885179,35.50850414,123.2,123.12,0.05980805]
[1741706885371,267.86,123.21,123.12,55.11980805]
[1741706885566,100.67149838,123.26,123.12,55.06]
[1741706886168,100.67149838,123.26,123.14,35.50850414]
[1741706886374,100.67149838,123.26,123.17,0.06014258]
[1741706886575,0.05728056,123.2,123.17,0.06014258]
[1741706887383,8.17678056,123.2,123.17,0.06014258]
[1741706887680,0.05728056,123.2,123.17,0.06014258]
[1741706888180,8.1204,123.18,123.17,4.258e-05]
[1741706889575,8.1204,123.18,123.07,7.9606]
[1741706889775,35.50850414,123.18,123.07,198.9606]
[1741706890380,8.1213,123.17,123.07,198.9606]
[1741706890575,35.50850414,123.18,123.14,8.1227]
[1741706890774,0.05164014,123.13,123.11,55.09322596]
[1741706890974,35.50850414,123.18,123.11,55.04]
[1741706891475,8.1242,123.13,123.09,8.1261]
[1741706891784,35.50850414,123.15,123.08,12.2947]
[1741706891983,35.50850414,123.15,123.08,4.1679]
[1741706892176,35.50850414,123.12,123.1,4.92e-06]
[1741706892381,8.125,123.11,123.1,4.92e-06]
[1741706895188,35.50850414,123.12,123.1,4.92e-06]
[1741706895390,0.05892975,123.13,123.1,4.92e-06]